[Event "Late-Titled-Tuesday-Blitz-April-23-2024"]
[Site "Chess.com"]
[Date "2024.04.23"]
[Round "2"]
[White "english_player_89"]
[Black "ashookk"]
[Result "1-0"]
[WhiteElo "2528"]
[BlackElo "2321"]
[TimeControl "180+1"]
[EndTime "14:18:41 PDT"]
[Termination "english_player_89 won by resignation"]

1. e4 {[%clk 0:03:00.9]} 1... e6 {[%clk 0:03:00.1]} 2. d4 {[%clk 0:03:00.4]}
2... d5 {[%clk 0:03:00.6]} 3. Bd3 {[%clk 0:03:00.7]} 3... c5 {[%clk 0:02:59.7]}
4. dxc5 {[%clk 0:03:00.3]} 4... Nc6 {[%clk 0:02:56.4]} 5. Nd2 {[%clk 0:02:56.4]}
5... Nf6 {[%clk 0:02:54.1]} 6. Ngf3 {[%clk 0:02:56.1]} 6... dxe4 {[%clk
0:02:51]} 7. Nxe4 {[%clk 0:02:56]} 7... Nxe4 {[%clk 0:02:51.5]} 8. Bxe4 {[%clk
0:02:56.5]} 8... Qxd1+ {[%clk 0:02:51.8]} 9. Kxd1 {[%clk 0:02:57.4]} 9... Bxc5
{[%clk 0:02:52]} 10. Ke2 {[%clk 0:02:56]} 10... Bd7 {[%clk 0:02:48.7]} 11. c3
{[%clk 0:02:56.3]} 11... O-O {[%clk 0:02:46.5]} 12. Rd1 {[%clk 0:02:56.8]} 12...
Rfd8 {[%clk 0:02:42.2]} 13. Bf4 {[%clk 0:02:47.9]} 13... Be8 {[%clk 0:02:40.4]}
14. Ne5 {[%clk 0:02:31.2]} 14... Nxe5 {[%clk 0:01:53.5]} 15. Bxe5 {[%clk
0:02:31.1]} 15... Bc6 {[%clk 0:01:52.1]} 16. Bxc6 {[%clk 0:02:30.3]} 16... bxc6
{[%clk 0:01:53]} 17. f3 {[%clk 0:02:27.2]} 17... Kf8 {[%clk 0:01:45.5]} 18. a4
{[%clk 0:02:20.7]} 18... f6 {[%clk 0:01:40.4]} 19. Bf4 {[%clk 0:02:13.9]} 19...
e5 {[%clk 0:01:38.6]} 20. Be3 {[%clk 0:02:11.6]} 20... Bxe3 {[%clk 0:01:37.4]}
21. Kxe3 {[%clk 0:02:12.5]} 21... Ke7 {[%clk 0:01:37.6]} 22. a5 {[%clk
0:02:09.8]} 22... Ke6 {[%clk 0:01:27.6]} 23. b4 {[%clk 0:02:08.9]} 23... a6
{[%clk 0:01:25]} 24. g4 {[%clk 0:02:00]} 24... Rab8 {[%clk 0:01:24.3]} 25. h4
{[%clk 0:01:55.3]} 25... Rd5 {[%clk 0:01:22.9]} 26. h5 {[%clk 0:01:50.7]} 26...
Rbd8 {[%clk 0:01:21]} 27. Rxd5 {[%clk 0:01:50.3]} 27... cxd5 {[%clk 0:01:13]}
28. Rb1 {[%clk 0:01:47.1]} 28... Rc8 {[%clk 0:01:12.2]} 29. Kd3 {[%clk
0:01:46.7]} 29... Rb8 {[%clk 0:01:10.3]} 30. Re1 {[%clk 0:01:38.9]} 30... Kd6
{[%clk 0:01:10.3]} 31. Kc2 {[%clk 0:01:27.7]} 31... d4 {[%clk 0:01:01.4]} 32.
Rd1 {[%clk 0:01:18.2]} 32... Ke6 {[%clk 0:00:56.7]} 33. Kb3 {[%clk 0:01:16.4]}
33... dxc3 {[%clk 0:00:53.9]} 34. Kxc3 {[%clk 0:01:17.3]} 34... Rc8+ {[%clk
0:00:54.2]} 35. Kb3 {[%clk 0:01:17.2]} 35... g6 {[%clk 0:00:46.9]} 36. hxg6
{[%clk 0:01:16.4]} 36... hxg6 {[%clk 0:00:46.7]} 37. Rh1 {[%clk 0:01:10.6]}
37... Rd8 {[%clk 0:00:44.5]} 38. Kc4 {[%clk 0:01:05.2]} 38... Rc8+ {[%clk
0:00:42.1]} 39. Kd3 {[%clk 0:01:00.5]} 39... Rd8+ {[%clk 0:00:41]} 40. Ke3
{[%clk 0:00:54]} 40... Rb8 {[%clk 0:00:41]} 41. Rb1 {[%clk 0:00:48.1]} 41... f5
{[%clk 0:00:41.4]} 42. gxf5+ {[%clk 0:00:46.5]} 42... gxf5 {[%clk 0:00:41.3]}
43. f4 {[%clk 0:00:45.1]} 43... e4 {[%clk 0:00:29.9]} 44. Kd4 {[%clk 0:00:44.9]}
44... Rd8+ {[%clk 0:00:29.8]} 45. Kc5 {[%clk 0:00:44.5]} 45... Rc8+ {[%clk
0:00:23.9]} 46. Kb6 {[%clk 0:00:43.6]} 46... Kd5 {[%clk 0:00:21.7]} 47. Kxa6
{[%clk 0:00:42.5]} 47... e3 {[%clk 0:00:22.1]} 48. b5 {[%clk 0:00:41.8]} 48...
e2 {[%clk 0:00:22.3]} 49. b6 {[%clk 0:00:42.2]} 49... Kc6 {[%clk 0:00:19.4]} 50.
Rc1+ {[%clk 0:00:39.8]} 50... Kd7 {[%clk 0:00:19.5]} 51. Re1 {[%clk 0:00:21.7]}
51... Kc6 {[%clk 0:00:18.9]} 52. Ka7 {[%clk 0:00:21.4]} 52... Re8 {[%clk
0:00:17.2]} 53. a6 {[%clk 0:00:20.3]} 53... Re7+ {[%clk 0:00:17]} 54. b7 {[%clk
0:00:20.7]} 54... Kb5 {[%clk 0:00:16.2]} 55. Rxe2 {[%clk 0:00:19.4]} 1-0

[Event "Late-Titled-Tuesday-Blitz-April-23-2024"]
[Site "Chess.com"]
[Date "2024.04.23"]
[Round "2"]
[White "ubdip"]
[Black "DamianoLew95"]
[Result "0-1"]
[WhiteElo "2426"]
[BlackElo "2743"]
[TimeControl "180+1"]
[EndTime "14:18:42 PDT"]
[Termination "DamianoLew95 won by resignation"]

1. c4 {[%clk 0:02:59.9]} 1... e5 {[%clk 0:02:59.8]} 2. Nc3 {[%clk 0:02:59.6]}
2... Nf6 {[%clk 0:02:59.9]} 3. Nf3 {[%clk 0:02:59.5]} 3... Nc6 {[%clk
0:02:56.5]} 4. e3 {[%clk 0:02:57.8]} 4... Bb4 {[%clk 0:02:54.4]} 5. d4 {[%clk
0:02:54.9]} 5... d6 {[%clk 0:02:31.1]} 6. Be2 {[%clk 0:02:48.1]} 6... O-O {[%clk
0:02:19.4]} 7. O-O {[%clk 0:02:47.3]} 7... Bxc3 {[%clk 0:02:16.8]} 8. bxc3
{[%clk 0:02:46.8]} 8... b6 {[%clk 0:02:12.8]} 9. a4 {[%clk 0:02:38.1]} 9... Ba6
{[%clk 0:01:41.8]} 10. Ba3 {[%clk 0:02:26.4]} 10... Re8 {[%clk 0:01:41.6]} 11.
c5 {[%clk 0:02:15.9]} 11... Bxe2 {[%clk 0:01:36.1]} 12. Qxe2 {[%clk 0:02:16.8]}
12... dxc5 {[%clk 0:01:33.7]} 13. dxc5 {[%clk 0:02:16.7]} 13... Qd7 {[%clk
0:01:26.6]} 14. Rfd1 {[%clk 0:02:15.1]} 14... Qe6 {[%clk 0:01:26.1]} 15. h3
{[%clk 0:01:53.9]} 15... h6 {[%clk 0:01:26.1]} 16. Nd2 {[%clk 0:01:47.9]} 16...
Red8 {[%clk 0:00:59.6]} 17. Nc4 {[%clk 0:01:40.5]} 17... Nd5 {[%clk 0:00:50.7]}
18. Rac1 {[%clk 0:01:28.9]} 18... Rd7 {[%clk 0:00:46.8]} 19. a5 {[%clk
0:01:07.2]} 19... b5 {[%clk 0:00:43]} 20. Nd2 {[%clk 0:01:03.9]} 20... a6 {[%clk
0:00:42.2]} 21. c4 {[%clk 0:00:59.1]} 21... bxc4 {[%clk 0:00:36.7]} 22. Nxc4
{[%clk 0:00:52.3]} 22... Rad8 {[%clk 0:00:36.3]} 23. Re1 {[%clk 0:00:46.8]}
23... Ndb4 {[%clk 0:00:27.6]} 24. Rb1 {[%clk 0:00:36.1]} 24... Nd3 {[%clk
0:00:24.7]} 25. Rec1 {[%clk 0:00:21.7]} 25... Nxc1 {[%clk 0:00:24.2]} 26. Rxc1
{[%clk 0:00:22.6]} 26... Na7 {[%clk 0:00:17.8]} 27. Bb2 {[%clk 0:00:21.6]} 27...
f6 {[%clk 0:00:15.7]} 28. Kh2 {[%clk 0:00:13.2]} 28... Nb5 {[%clk 0:00:15.8]}
29. f3 {[%clk 0:00:05.2]} 29... Rd5 {[%clk 0:00:15]} 30. Na3 {[%clk 0:00:03.2]}
30... Rd2 {[%clk 0:00:13.4]} 31. Qc4 {[%clk 0:00:03.6]} 31... Qxc4 {[%clk
0:00:11.9]} 32. Nxc4 {[%clk 0:00:04.5]} 32... Rd1 {[%clk 0:00:09.6]} 33. Nb6
{[%clk 0:00:03.1]} 33... cxb6 {[%clk 0:00:07.9]} 34. axb6 {[%clk 0:00:02.3]}
34... Rxc1 {[%clk 0:00:07.6]} 35. Bxc1 {[%clk 0:00:03.2]} 35... Rc8 {[%clk
0:00:07.9]} 36. b7 {[%clk 0:00:02.6]} 36... Rb8 {[%clk 0:00:08.5]} 37. c6 {[%clk
0:00:03.1]} 37... Na7 {[%clk 0:00:06.5]} 38. c7 {[%clk 0:00:03]} 38... Rxb7
{[%clk 0:00:07.1]} 39. c8=Q+ {[%clk 0:00:01.4]} 39... Nxc8 {[%clk 0:00:07.5]}
40. Ba3 {[%clk 0:00:02]} 40... Kf7 {[%clk 0:00:08.1]} 41. Bd6 {[%clk 0:00:02.8]}
41... Ke6 {[%clk 0:00:08.8]} 42. Bxe5 {[%clk 0:00:03.4]} 42... fxe5 {[%clk
0:00:08.7]} 0-1

[Event "Late-Titled-Tuesday-Blitz-April-23-2024"]
[Site "Chess.com"]
[Date "2024.04.23"]
[Round "2"]
[White "Bryanl106"]
[Black "Valiyev_Shahin"]
[Result "1/2-1/2"]
[WhiteElo "2693"]
[BlackElo "2433"]
[TimeControl "180+1"]
[EndTime "14:18:42 PDT"]
[Termination "Game drawn by agreement"]

1. e4 {[%clk 0:03:00.9]} 1... c5 {[%clk 0:03:00]} 2. Nf3 {[%clk 0:03:00.4]} 2...
d6 {[%clk 0:03:00.6]} 3. d4 {[%clk 0:03:01.3]} 3... cxd4 {[%clk 0:03:01.5]} 4.
Nxd4 {[%clk 0:03:02.2]} 4... Nf6 {[%clk 0:03:02.2]} 5. Nc3 {[%clk 0:03:03.1]}
5... g6 {[%clk 0:03:02.2]} 6. Be3 {[%clk 0:03:02.8]} 6... Bg7 {[%clk 0:03:02.9]}
7. f3 {[%clk 0:03:03.1]} 7... O-O {[%clk 0:03:03]} 8. Qd2 {[%clk 0:03:03.8]}
8... Nc6 {[%clk 0:03:03.7]} 9. O-O-O {[%clk 0:03:04.5]} 9... Nxd4 {[%clk
0:03:03.6]} 10. Bxd4 {[%clk 0:03:01.9]} 10... Be6 {[%clk 0:03:04.2]} 11. Kb1
{[%clk 0:03:01.8]} 11... Qc7 {[%clk 0:03:02.7]} 12. g4 {[%clk 0:03:00.9]} 12...
Rfc8 {[%clk 0:03:02.5]} 13. h4 {[%clk 0:03:00.8]} 13... Qa5 {[%clk 0:03:02.2]}
14. a3 {[%clk 0:02:52]} 14... Rab8 {[%clk 0:03:01.7]} 15. h5 {[%clk 0:02:45.8]}
15... b5 {[%clk 0:03:00.7]} 16. hxg6 {[%clk 0:02:20.6]} 16... fxg6 {[%clk
0:02:59.3]} 17. Nd5 {[%clk 0:02:15]} 17... Qxd2 {[%clk 0:02:53.9]} 18. Nxf6+
{[%clk 0:02:15.2]} 18... Bxf6 {[%clk 0:02:52.8]} 19. Rxd2 {[%clk 0:02:16.1]}
19... Bxd4 {[%clk 0:02:48.5]} 20. Rxd4 {[%clk 0:02:17]} 20... a5 {[%clk
0:02:48.4]} 21. Rd2 {[%clk 0:02:07.9]} 21... Kg7 {[%clk 0:02:42.5]} 22. Rdh2
{[%clk 0:02:07.6]} 22... Bg8 {[%clk 0:02:43.2]} 23. Bd3 {[%clk 0:02:07.3]} 23...
b4 {[%clk 0:02:42.4]} 24. axb4 {[%clk 0:02:07.3]} 24... axb4 {[%clk 0:02:42.8]}
25. f4 {[%clk 0:01:52.7]} 25... Ra8 {[%clk 0:02:28.5]} 26. b3 {[%clk 0:01:41]}
26... Ra3 {[%clk 0:02:25.1]} 27. g5 {[%clk 0:01:36.4]} 27... Rc3 {[%clk
0:02:10.4]} 28. f5 {[%clk 0:01:27.5]} 28... Raxb3+ {[%clk 0:01:57.2]} 29. cxb3
{[%clk 0:01:25.3]} 29... Rxd3 {[%clk 0:01:57.9]} 30. Rg1 {[%clk 0:01:16.7]}
30... Rxb3+ {[%clk 0:01:56.5]} 31. Rb2 {[%clk 0:01:16.2]} 31... Rf3 {[%clk
0:01:21]} 32. fxg6 {[%clk 0:01:10.1]} 32... b3 {[%clk 0:01:21.1]} 33. gxh7
{[%clk 0:01:04.8]} 33... Bxh7 {[%clk 0:01:22]} 34. g6 {[%clk 0:01:03.1]} 34...
Bxg6 {[%clk 0:01:20.9]} 35. Rbg2 {[%clk 0:01:03.3]} 35... Rf6 {[%clk 0:01:21.1]}
36. Kb2 {[%clk 0:01:03.5]} 36... Kf7 {[%clk 0:01:20.6]} 37. Rg4 {[%clk 0:01:02]}
37... Re6 {[%clk 0:01:16.1]} 38. Rf1+ {[%clk 0:00:54.9]} 38... Ke8 {[%clk
0:01:14.6]} 39. Rff4 {[%clk 0:00:50.9]} 39... Bf7 {[%clk 0:01:04.2]} 40. Rh4
{[%clk 0:00:46.4]} 40... Rf6 {[%clk 0:00:59.9]} 41. Rh8+ {[%clk 0:00:43]} 41...
Kd7 {[%clk 0:01:00.2]} 42. Rxf6 {[%clk 0:00:42.4]} 42... exf6 {[%clk 0:01:01.1]}
43. Kc3 {[%clk 0:00:42.3]} 43... Ke7 {[%clk 0:00:50.7]} 44. Kd4 {[%clk
0:00:40.6]} 44... Kd7 {[%clk 0:00:39.3]} 45. Rf8 {[%clk 0:00:39.8]} 45... Be6
{[%clk 0:00:35]} 46. Rxf6 {[%clk 0:00:37.8]} 46... b2 {[%clk 0:00:33.8]} 47. Rf1
{[%clk 0:00:37.9]} 47... Ba2 {[%clk 0:00:33.8]} 48. e5 {[%clk 0:00:37.8]} 48...
d5 {[%clk 0:00:30]} 49. Rg1 {[%clk 0:00:23.8]} 49... Ke7 {[%clk 0:00:19.7]} 50.
Rh1 {[%clk 0:00:23.2]} 50... Ke6 {[%clk 0:00:19.1]} 51. Rh6+ {[%clk 0:00:23.2]}
51... Ke7 {[%clk 0:00:14.2]} 52. Rb6 {[%clk 0:00:23.3]} 52... b1=Q {[%clk
0:00:14.6]} 53. Rxb1 {[%clk 0:00:24.2]} 53... Bxb1 {[%clk 0:00:15.5]} 54. Kxd5
{[%clk 0:00:25.1]} 54... Ba2+ {[%clk 0:00:16.1]} 55. Kd4 {[%clk 0:00:25.7]}
55... Be6 {[%clk 0:00:16.7]} 56. Ke4 {[%clk 0:00:26.6]} 56... Bd7 {[%clk
0:00:17.3]} 57. Kf4 {[%clk 0:00:27.5]} 57... Be6 {[%clk 0:00:18.2]} 58. Ke3
{[%clk 0:00:28.4]} 58... Bd7 {[%clk 0:00:19.1]} 59. Kd4 {[%clk 0:00:29.3]} 59...
Be6 {[%clk 0:00:20]} 60. Ke3 {[%clk 0:00:30.2]} 1/2-1/2

[Event "Late-Titled-Tuesday-Blitz-April-23-2024"]
[Site "Chess.com"]
[Date "2024.04.23"]
[Round "2"]
[White "Zampronha1971"]
[Black "Harry_Rakkel"]
[Result "0-1"]
[WhiteElo "2443"]
[BlackElo "2699"]
[TimeControl "180+1"]
[EndTime "14:18:43 PDT"]
[Termination "Harry_Rakkel won by resignation"]

1. e4 {[%clk 0:03:00.9]} 1... c6 {[%clk 0:02:57.9]} 2. d4 {[%clk 0:03:00.3]}
2... d5 {[%clk 0:02:57.6]} 3. e5 {[%clk 0:02:59.7]} 3... Bf5 {[%clk 0:02:56.7]}
4. Nf3 {[%clk 0:03:00.3]} 4... e6 {[%clk 0:02:56.4]} 5. Be2 {[%clk 0:03:00]}
5... a5 {[%clk 0:02:56.2]} 6. O-O {[%clk 0:02:59.5]} 6... a4 {[%clk 0:02:55.7]}
7. c4 {[%clk 0:02:57.2]} 7... dxc4 {[%clk 0:02:53.4]} 8. Bxc4 {[%clk 0:02:56.5]}
8... Nd7 {[%clk 0:02:53]} 9. Nc3 {[%clk 0:02:54.7]} 9... Nb6 {[%clk 0:02:52.5]}
10. Bd3 {[%clk 0:02:53.9]} 10... Ne7 {[%clk 0:02:47.9]} 11. Bg5 {[%clk
0:02:48.8]} 11... Qd7 {[%clk 0:02:34.9]} 12. Bxe7 {[%clk 0:02:42.5]} 12... Bxd3
{[%clk 0:02:29.6]} 13. Bxf8 {[%clk 0:02:42.2]} 13... Bxf1 {[%clk 0:02:29.5]} 14.
Bc5 {[%clk 0:02:41.6]} 14... Bxg2 {[%clk 0:02:22.4]} 15. Kxg2 {[%clk 0:02:39.6]}
15... Nc8 {[%clk 0:02:20.9]} 16. Ne4 {[%clk 0:02:36.4]} 16... Qd5 {[%clk
0:02:12.5]} 17. Qe2 {[%clk 0:02:28.3]} 17... b6 {[%clk 0:02:01.1]} 18. Nd6+
{[%clk 0:02:24.2]} 18... Nxd6 {[%clk 0:02:00.7]} 19. Bxd6 {[%clk 0:02:24.3]}
19... f5 {[%clk 0:01:53.7]} 20. Kg1 {[%clk 0:02:08.8]} 20... h6 {[%clk
0:01:38.8]} 21. Rc1 {[%clk 0:02:04]} 21... g5 {[%clk 0:01:36.6]} 22. Qd3 {[%clk
0:01:57.4]} 22... g4 {[%clk 0:01:25.5]} 23. Nd2 {[%clk 0:01:57.3]} 23... Kf7
{[%clk 0:01:03.7]} 24. Qc4 {[%clk 0:01:53.8]} 24... Rhc8 {[%clk 0:01:01.5]} 25.
a3 {[%clk 0:01:44.2]} 25... h5 {[%clk 0:01:00.6]} 26. Qb4 {[%clk 0:01:19]} 26...
Qb5 {[%clk 0:00:40.9]} 27. Qxb5 {[%clk 0:01:07.6]} 27... cxb5 {[%clk 0:00:40.4]}
28. Rc3 {[%clk 0:01:05.7]} 28... h4 {[%clk 0:00:34.7]} 29. Bb4 {[%clk
0:01:00.9]} 29... Rxc3 {[%clk 0:00:31.4]} 30. Bxc3 {[%clk 0:00:59.4]} 30... Kg6
{[%clk 0:00:28.1]} 31. Kg2 {[%clk 0:00:59.7]} 31... f4 {[%clk 0:00:26.2]} 32. f3
{[%clk 0:00:59]} 32... h3+ {[%clk 0:00:24.2]} 33. Kf2 {[%clk 0:00:58.4]} 33...
Kf5 {[%clk 0:00:24]} 34. fxg4+ {[%clk 0:00:57.3]} 34... Kxg4 {[%clk 0:00:24.9]}
35. Ne4 {[%clk 0:00:55.7]} 35... Ra7 {[%clk 0:00:18.5]} 36. Nf6+ {[%clk
0:00:52.7]} 36... Kf5 {[%clk 0:00:18.5]} 37. Nh5 {[%clk 0:00:44.6]} 37... Rh7
{[%clk 0:00:17.3]} 38. Nf6 {[%clk 0:00:42.9]} 38... Rg7 {[%clk 0:00:17.4]} 39.
Ne8 {[%clk 0:00:41.4]} 39... Rg2+ {[%clk 0:00:14.9]} 40. Kf3 {[%clk 0:00:41.8]}
40... Rxh2 {[%clk 0:00:15.8]} 41. Nd6+ {[%clk 0:00:42.1]} 41... Kg5 {[%clk
0:00:16.2]} 42. Ne4+ {[%clk 0:00:41.5]} 42... Kf5 {[%clk 0:00:10.4]} 43. Nd6+
{[%clk 0:00:41.2]} 43... Kg6 {[%clk 0:00:11.1]} 44. Kxf4 {[%clk 0:00:39.9]}
44... Rg2 {[%clk 0:00:11.5]} 45. Kf3 {[%clk 0:00:39.6]} 45... Rg5 {[%clk
0:00:09.9]} 46. Ne4 {[%clk 0:00:38.1]} 46... h2 {[%clk 0:00:10.2]} 47. Nf2
{[%clk 0:00:22]} 47... Rf5+ {[%clk 0:00:10]} 48. Kg3 {[%clk 0:00:17.3]} 48...
Rxf2 {[%clk 0:00:10.9]} 0-1

[Event "Late-Titled-Tuesday-Blitz-April-23-2024"]
[Site "Chess.com"]
[Date "2024.04.23"]
[Round "2"]
[White "MatthewG-p4p"]
[Black "TimGrutter03"]
[Result "1-0"]
[WhiteElo "2910"]
[BlackElo "2610"]
[TimeControl "180+1"]
[EndTime "14:18:44 PDT"]
[Termination "MatthewG-p4p won on time"]

1. e4 {[%clk 0:03:00.9]} 1... c6 {[%clk 0:02:59.4]} 2. d4 {[%clk 0:03:01.1]}
2... d5 {[%clk 0:03:00.1]} 3. exd5 {[%clk 0:03:02]} 3... cxd5 {[%clk 0:03:00.9]}
4. Bd3 {[%clk 0:03:02.8]} 4... Nc6 {[%clk 0:02:55.9]} 5. c3 {[%clk 0:03:02.9]}
5... Nf6 {[%clk 0:02:54.9]} 6. h3 {[%clk 0:03:03.1]} 6... g6 {[%clk 0:02:54.2]}
7. Nf3 {[%clk 0:03:03.4]} 7... Bg7 {[%clk 0:02:54]} 8. O-O {[%clk 0:03:03.4]}
8... O-O {[%clk 0:02:54.6]} 9. Re1 {[%clk 0:03:03.9]} 9... Bf5 {[%clk 0:02:55]}
10. Bf1 {[%clk 0:03:04.5]} 10... Ne4 {[%clk 0:02:54]} 11. Nbd2 {[%clk
0:03:04.1]} 11... Rc8 {[%clk 0:02:50.2]} 12. g4 {[%clk 0:03:02.6]} 12... Nxd2
{[%clk 0:02:49.5]} 13. Bxd2 {[%clk 0:03:03]} 13... Be4 {[%clk 0:02:45.1]} 14.
Ng5 {[%clk 0:03:01.7]} 14... e5 {[%clk 0:02:33.9]} 15. dxe5 {[%clk 0:01:42.3]}
15... Nxe5 {[%clk 0:02:26.4]} 16. Bf4 {[%clk 0:01:41.8]} 16... h6 {[%clk
0:02:17]} 17. Nxe4 {[%clk 0:01:35.5]} 17... dxe4 {[%clk 0:02:14.6]} 18. Rxe4
{[%clk 0:01:29.6]} 18... Nc6 {[%clk 0:01:30.1]} 19. Qxd8 {[%clk 0:01:17.1]}
19... Rcxd8 {[%clk 0:01:31]} 20. Rae1 {[%clk 0:01:15.2]} 20... Rd5 {[%clk
0:01:28.8]} 21. Bc4 {[%clk 0:01:13.7]} 21... Rd7 {[%clk 0:01:26.7]} 22. Re8
{[%clk 0:01:11.6]} 22... a6 {[%clk 0:01:10.3]} 23. a4 {[%clk 0:01:08.6]} 23...
Na5 {[%clk 0:01:05.4]} 24. Bf1 {[%clk 0:01:01.1]} 24... Nc6 {[%clk 0:01:02.3]}
25. Bg2 {[%clk 0:00:57.5]} 25... Kh7 {[%clk 0:00:39.6]} 26. h4 {[%clk
0:00:56.1]} 26... Rxe8 {[%clk 0:00:36.3]} 27. Rxe8 {[%clk 0:00:57]} 27... Bf6
{[%clk 0:00:36.1]} 28. h5 {[%clk 0:00:55.7]} 28... Bg5 {[%clk 0:00:31.6]} 29.
hxg6+ {[%clk 0:00:42.4]} 29... Kxg6 {[%clk 0:00:27.2]} 30. Be4+ {[%clk
0:00:35.9]} 30... Kf6 {[%clk 0:00:27.3]} 31. Bxc6 {[%clk 0:00:36.3]} 31... Rd1+
{[%clk 0:00:20.2]} 32. Kg2 {[%clk 0:00:36.6]} 32... Bxf4 {[%clk 0:00:11.5]} 33.
Bxb7 {[%clk 0:00:36.8]} 33... Rd2 {[%clk 0:00:10.6]} 34. b4 {[%clk 0:00:35.4]}
34... Be5 {[%clk 0:00:10.7]} 35. Rc8 {[%clk 0:00:20.3]} 35... Rc2 {[%clk
0:00:10.5]} 36. Bxa6 {[%clk 0:00:13]} 36... Rxc3 {[%clk 0:00:10.7]} 37. Rd8
{[%clk 0:00:08.1]} 37... Rc2 {[%clk 0:00:06.7]} 38. Rd5 {[%clk 0:00:07]} 38...
Bc7 {[%clk 0:00:05.3]} 39. Bd3 {[%clk 0:00:06.6]} 39... Rd2 {[%clk 0:00:04.3]}
40. a5 {[%clk 0:00:06.9]} 40... Bb8 {[%clk 0:00:03.3]} 41. b5 {[%clk 0:00:06.7]}
41... Ke6 {[%clk 0:00:03]} 42. Rd8 {[%clk 0:00:03.8]} 42... Bc7 {[%clk
0:00:01.7]} 43. Bc4+ {[%clk 0:00:03.8]} 1-0

[Event "Late-Titled-Tuesday-Blitz-April-23-2024"]
[Site "Chess.com"]
[Date "2024.04.23"]
[Round "2"]
[White "ViIIagra"]
[Black "arenal72"]
[Result "1-0"]
[WhiteElo "2927"]
[BlackElo "2624"]
[TimeControl "180+1"]
[EndTime "14:18:45 PDT"]
[Termination "ViIIagra won by resignation"]

1. g3 {[%clk 0:02:58.7]} 1... d5 {[%clk 0:02:56.4]} 2. Bg2 {[%clk 0:02:56.5]}
2... e5 {[%clk 0:02:56.4]} 3. d3 {[%clk 0:02:56.3]} 3... g6 {[%clk 0:02:53.2]}
4. Nf3 {[%clk 0:02:53.3]} 4... Bg7 {[%clk 0:02:53]} 5. O-O {[%clk 0:02:54]} 5...
Ne7 {[%clk 0:02:51.7]} 6. e4 {[%clk 0:02:44.5]} 6... Nbc6 {[%clk 0:02:49.4]} 7.
Nc3 {[%clk 0:02:44.7]} 7... O-O {[%clk 0:02:45]} 8. Bd2 {[%clk 0:02:06.8]} 8...
h6 {[%clk 0:02:37.3]} 9. Qc1 {[%clk 0:02:03.8]} 9... Kh7 {[%clk 0:02:34.5]} 10.
Nxd5 {[%clk 0:02:02.7]} 10... Nxd5 {[%clk 0:02:33.1]} 11. exd5 {[%clk
0:02:03.6]} 11... Ne7 {[%clk 0:02:32.4]} 12. Re1 {[%clk 0:01:58.9]} 12... f6
{[%clk 0:02:08.7]} 13. Bb4 {[%clk 0:01:58.5]} 13... Rf7 {[%clk 0:02:00.2]} 14.
c4 {[%clk 0:01:55.1]} 14... c6 {[%clk 0:01:53.9]} 15. d4 {[%clk 0:01:46.2]}
15... cxd5 {[%clk 0:01:23]} 16. Bxe7 {[%clk 0:01:32.6]} 16... Rxe7 {[%clk
0:01:19.2]} 17. dxe5 {[%clk 0:01:31.2]} 17... dxc4 {[%clk 0:01:07.9]} 18. Qxc4
{[%clk 0:01:16.1]} 18... fxe5 {[%clk 0:01:04.1]} 19. Rad1 {[%clk 0:01:15.5]}
19... Qf8 {[%clk 0:01:01.4]} 20. Nh4 {[%clk 0:01:09.8]} 20... Bf5 {[%clk
0:00:57.9]} 21. Be4 {[%clk 0:00:58.2]} 21... Bxe4 {[%clk 0:00:54.5]} 22. Qxe4
{[%clk 0:00:58.3]} 22... Qf7 {[%clk 0:00:53.6]} 23. Rd6 {[%clk 0:00:57.7]} 23...
Re6 {[%clk 0:00:51.3]} 24. Rxe6 {[%clk 0:00:57.4]} 24... Qxe6 {[%clk 0:00:52.2]}
25. Qxb7 {[%clk 0:00:57.9]} 25... Rf8 {[%clk 0:00:49.2]} 26. Qe4 {[%clk
0:00:56.1]} 26... Qf7 {[%clk 0:00:39.6]} 27. Re2 {[%clk 0:00:55.3]} 27... Bf6
{[%clk 0:00:39.2]} 28. Nf3 {[%clk 0:00:43.2]} 28... Qxa2 {[%clk 0:00:37.6]} 29.
Nxe5 {[%clk 0:00:42.3]} 29... Bxe5 {[%clk 0:00:26.9]} 30. Qxe5 {[%clk
0:00:43.2]} 30... Rf7 {[%clk 0:00:26.8]} 31. Kg2 {[%clk 0:00:42.6]} 31... Qa6
{[%clk 0:00:24.7]} 32. Qe4 {[%clk 0:00:40.8]} 32... Qb6 {[%clk 0:00:24.2]} 33.
h4 {[%clk 0:00:39.4]} 33... a5 {[%clk 0:00:23.5]} 34. h5 {[%clk 0:00:39.5]}
34... Qf6 {[%clk 0:00:19.5]} 35. hxg6+ {[%clk 0:00:37.4]} 35... Qxg6 {[%clk
0:00:20.4]} 36. Qd5 {[%clk 0:00:37.4]} 36... Qf5 {[%clk 0:00:16.2]} 37. Qc6
{[%clk 0:00:20.9]} 37... Qf6 {[%clk 0:00:16.1]} 38. Qa8 {[%clk 0:00:20.1]} 38...
Qf5 {[%clk 0:00:15.5]} 39. Rd2 {[%clk 0:00:16.3]} 39... Qf6 {[%clk 0:00:14.1]}
40. Qe4+ {[%clk 0:00:14.1]} 40... Qf5 {[%clk 0:00:14.3]} 41. Qe2 {[%clk
0:00:14.8]} 41... Qf6 {[%clk 0:00:10.5]} 42. Rd5 {[%clk 0:00:14.8]} 42... a4
{[%clk 0:00:08]} 43. Rd2 {[%clk 0:00:09.9]} 43... Qc6+ {[%clk 0:00:07]} 44. f3
{[%clk 0:00:10]} 44... Kg7 {[%clk 0:00:04.7]} 45. Rd4 {[%clk 0:00:09.1]} 45...
Qf6 {[%clk 0:00:04.4]} 46. Rxa4 {[%clk 0:00:08.6]} 46... Rb7 {[%clk 0:00:05]}
47. Rg4+ {[%clk 0:00:08.9]} 47... Kh7 {[%clk 0:00:04.7]} 48. Qe4+ {[%clk
0:00:09.2]} 1-0